[Event "Romanian Team Blitz Open 2022"]
[Site "Sebes"]
[Date "2022.12.04"]
[Round "4.7"]
[White "Negrean, Andrei"]
[Black "Grecescu, Gabriel-Andrei"]
[Result "1-0"]
[ECO "A46"]
[WhiteElo "1991"]
[BlackElo "2388"]
[Annotator "TA"]
[PlyCount "127"]
[EventDate "2022.12.04"]
[EventType "blitz"]
[EventCountry "ROU"]
[SourceTitle "playchess.com"]
[Source "ChessBase"]
[SourceQuality "1"]
[TimeControl "180+2"]

{[%evp 16,127,10,12,230,239,229,239,226,237,229,235,232,221,281,278,275,252,267,202,252,204,254,253,341,328,356,307,371,367,366,243,335,304,362,342,371,360,354,365,424,300,288,311,285,244,247,241,779,765,868,860,1110,989,29987,934,1101,1061,29987,29988,29988,29985,29985,1433,961,409,391,394,332,250,225,161,240,236,187,189,314,297,411,370,276,258,383,316,757,0,0,0,0,0,108,101,96,94,90,0,0,0,672,532,511,247,5089,35,35,35,35,43,463,359,441,351,29984,29985]} 1. d4 {[%emt 0:00:02]} Nf6 {[%emt 0:00:01]} 2. Nf3 {[%emt 0:00:01]} e6 {[%emt 0:00:00]} 3. g3 {[%emt 0:00:01]} b5 {[%emt 0:00:02]} 4. Bg2 {[%emt 0:00:01]} Bb7 {[%emt 0:00:01]} 5. O-O {[%emt 0:00:02]} c5 {[%emt 0:00:06]} 6. c3 {[%emt 0:00:02]} cxd4 {[%emt 0:00:08]} 7. cxd4 {[%emt 0:00:01]} Be7 {[%emt 0:00:04]} 8. Bg5 {[%emt 0:00:05]} O-O {[%emt 0:00:02]} 9. Qd3 {[%emt 0:00:03]} b4 $2 {[%emt 0:00:04] [#] A46: 1 d4 Nf6 2 Nf3 e6: Torre, London and Colle Systems.} (9... a6 $11) 10. Bxf6 $146 {[%emt 0:00:05]} ({Predecessor:} 10. Re1 Be4 11. Qd1 h6 12. Bxf6 Bxf6 13. Nbd2 Bb7 14. Qb3 a5 15. e4 Na6 16. Bf1 d6 {½-½ (16) Falk,U (2225)-Sobeck,G Germany 1994}) 10... Bxf6 {[%emt 0:00:09] [#]} 11. Ng5 $1 {[%emt 0:00:02][%mdl 512]} Bxg5 {[%emt 0:00:02] White is clearly better.} 12. Bxb7 {[%emt 0:00:01]} Nc6 {[%emt 0:00:01]} 13. Bxa8 {[%emt 0:00:03]} Qxa8 {[%emt 0:00:01]} 14. Nd2 {[%emt 0:00:16]} f5 {[%emt 0:00:16]} 15. Nf3 {[%emt 0:00:08]} Bf6 {[%emt 0:00:04]} 16. Rad1 {[%emt 0:00:14]} Ne7 {[%emt 0:00:01]} 17. Rc1 {[%emt 0:00:10]} Nd5 {[%emt 0:00:02]} 18. Ne5 {[%emt 0:00:27]} Bxe5 {[%emt 0:00:02]} 19. dxe5 {[%emt 0:00:01]} f4 {[%emt 0:00:03]} 20. e4 {[%emt 0:00:45]} Nb6 {[%emt 0:00:20]} 21. f3 {[%emt 0:00:10]} Qe8 {[%emt 0:00:01]} 22. g4 {[%emt 0:00:12] Inhibits Qh5.} Qg6 {[%emt 0:00:06]} 23. Kg2 {[%emt 0:00:29]} h5 {[%emt 0:00:02][%cal Ob6d5]} 24. h3 {[%emt 0:00:02]} Qg5 {[%emt 0:00:01]} 25. Qd4 {[%emt 0:00:06]} Qh4 {[%emt 0:00:07] White must now prevent ...Qg3+.} 26. Qf2 {[%emt 0:00:02] Inhibits Qg3+.} ({And not} 26. Qxb4 Qg3+ 27. Kh1 Qxh3+ 28. Kg1 Qg3+ 29. Kh1 Qh4+ 30. Kg1 hxg4 $17) 26... Qg5 {[%emt 0:00:01]} 27. Rc5 {[%emt 0:00:07]} Nc8 {[%emt 0:00:13]} 28. Kh2 {[%emt 0:00:08]} hxg4 {[%emt 0:00:02]} 29. hxg4 {[%emt 0:00:04]} Ne7 {[%emt 0:00:07]} 30. Rh1 {[%emt 0:00:04]} Nc6 {[%emt 0:00:14]} 31. Kg2 {[%emt 0:00:10]} Nxe5 $2 {[%emt 0:00:15]} (31... Qd8 32. Rh5 Qb6) 32. Rh5 {[%emt 0:00:00]} Qe7 {[%emt 0:00:01]} 33. Rcxe5 {[%emt 0:00:00]} d6 {[%emt 0:00:02]} 34. Reg5 {[%emt 0:00:00]} Rc8 {[%emt 0:00:02]} 35. Rb5 {[%emt 0:00:01]} (35. Qh4 $142 Qxg5 36. Qxg5 Kf7 37. Qxf4+ Ke7 38. Rb5 Rc2+ 39. Kg3 Rc7 40. Rb8) 35... e5 {[%emt 0:00:09]} 36. Rxb4 {[%emt 0:00:02]} Rc1 {[%emt 0:00:05]} 37. Rb8+ {[%emt 0:00:03]} Kf7 {[%emt 0:00:01]} 38. Rf5+ {[%emt 0:00:02]} Ke6 {[%emt 0:00:03]} 39. Rb3 {[%emt 0:00:05]} (39. Qd2 $142 Rc5 40. b4 Qh4 41. bxc5 Qg3+ 42. Kf1 Qxf3+ 43. Ke1 Qg3+ 44. Kd1 Qg1+ 45. Kc2 Qxc5+ 46. Kb2 Qd4+ 47. Qxd4 exd4 48. Rg8) 39... g6 {[%emt 0:00:01] [#]} 40. Rc3 {[%emt 0:00:01]} (40. Rb8 $142 $1 {[%cal Of2d2] Threatening mate with Qd2!} gxf5 41. exf5+ Kf7 42. Qd2) 40... Rxc3 41. bxc3 {[%emt 0:00:01][%cal Og2h3] And now Kh3! would win. Dancing on a razor blade.} gxf5 {[%emt 0:00:05]} 42. gxf5+ {[%emt 0:00:02][%mdl 4096] Endgame KQ-KQ} Kf7 {[%emt 0:00:02]} 43. Kf1 {[%emt 0:00:01] Threatens to win with Qg1.} Qb7 {[%emt 0:00:02]} (43... Qc7 $142 44. Kg2 Kf8) 44. Qc2 {[%emt 0:00:02]} Qb5+ {[%emt 0:00:03]} 45. Kf2 {[%emt 0:00:01]} Qc5+ {[%emt 0:00:01]} (45... Qd7 {was necessary.} 46. Qb3+ Kg7) 46. Kg2 {[%emt 0:00:01] Qb3+ is the strong threat.} Qe3 {[%emt 0:00:02]} 47. Qb3+ {[%emt 0:00:00]} Kg7 {[%emt 0:00:02]} 48. Qb7+ {[%emt 0:00:02]} Kh6 {[%emt 0:00:01] [#]} (48... Kf6 $142 49. Qb2 Kg5) 49. Qb2 $1 {[%emt 0:00:04] Strongly threatening Qf2.} Kg5 $2 {[%emt 0:00:13]} (49... Kg7 50. Qf2 Qxc3 51. Qxa7+ Kf6) 50. a4 $2 {[%emt 0:00:03]} ({White must play} 50. Qf2 $18 Qc5 51. Qxc5 dxc5 52. c4) 50... d5 $11 {[%emt 0:00:02]} 51. exd5 {[%emt 0:00:02] aiming for Qc2.} e4 {[%emt 0:00:01]} 52. Qf2 {[%emt 0:00:03]} exf3+ {[%emt 0:00:24]} (52... Qxf2+ $11 {remains equal.} 53. Kxf2 e3+ 54. Ke1 (54. Ke2 Kxf5 55. Ke1 Kf6 $11) 54... Kxf5) 53. Qxf3 $16 {[%emt 0:00:01]} Qd2+ {[%emt 0:00:02]} 54. Kh3 {[%emt 0:00:04]} Kxf5 {[%emt 0:00:05]} 55. c4 {[%emt 0:00:02]} (55. Qg4+ $16 Ke4 56. Qe6+ Kf3 57. d6 Qxc3 58. Qd5+ Ke2+ 59. Kg4) 55... Ke5 $1 $11 {[%emt 0:00:10]} 56. Kg4 {[%emt 0:00:02]} Qd4 $2 {[%emt 0:00:16][%mdl 8192]} (56... a5 $11 57. Qf1 Qe3) 57. Qe2+ $18 {[%emt 0:00:02]} Kd6 {[%emt 0:00:03]} 58. Kf3 {[%emt 0:00:01]} (58. Qe6+ $142 Kc7 59. Qc6+ Kd8 60. c5) 58... Kc5 $2 {[%emt 0:00:10]} (58... Qf6 59. Qe6+ Qxe6 60. dxe6 Kxe6 61. Kxf4 Kd6) 59. a5 $2 {[%emt 0:00:02]} (59. Qf2 $18 {White threatens Qxd4+ and mate.} Qxf2+ 60. Kxf2 Kd6 61. Ke2 Ke5 62. Kf3 a5 63. Kg2 Ke4 64. d6) 59... Qc3+ {[%emt 0:00:03]} 60. Kxf4 {[%emt 0:00:01]} Qf6+ {[%emt 0:00:01]} 61. Ke3 {[%emt 0:00:05] Hoping for Kd3.} Qe5+ $2 {[%emt 0:00:01][%mdl 8192]} (61... a6 $14 62. Kd3 Qf5+ 63. Kd2 Qb1) 62. Kd3 {[%emt 0:00:01]} Qf5+ {[%emt 0:00:09]} 63. Qe4 {[%emt 0:00:01]} Qh3+ {[%emt 0:00:02]} (63... Qf1+ $18 64. Kc3 Qh3+ 65. Qd3 Qh8+ 66. Kb3 Qb8+ 67. Ka3 Qe5) 64. Qe3+ {[%emt 0:00:08] Weighted Error Value: White=0.23 (precise) /Black=0.80} 1-0

[Event "Romanian Team Blitz Open 2022"]
[Site "Sebes"]
[Date "2022.12.04"]
[Round "4.8"]
[White "Cnejev, Vladimir-Alexandru"]
[Black "Tampea, Radu"]
[Result "1-0"]
[ECO "B31"]
[WhiteElo "2293"]
[BlackElo "2110"]
[Annotator "TA"]
[PlyCount "81"]
[EventDate "2022.12.04"]
[EventType "blitz"]
[EventCountry "ROU"]
[SourceTitle "playchess.com"]
[Source "ChessBase"]
[SourceQuality "1"]
[TimeControl "180+2"]

{[%evp 17,81,14,18,-2,9,8,13,9,5,8,24,9,27,20,24,31,35,26,26,6,35,6,75,41,31,32,34,30,25,28,39,19,55,52,68,69,63,0,125,110,141,151,193,187,664,666,747,223,479,478,442,122,137,97,88,43,893,177,175,154,191,195,191,0,29988,29989]} 1. e4 {[%emt 0:00:02]} c5 {[%emt 0:00:00]} 2. Nf3 {[%emt 0:00:01]} Nc6 {[%emt 0:00:02]} 3. Bb5 {[%emt 0:00:01]} g6 {[%emt 0:00:01]} 4. O-O {[%emt 0:00:02]} Bg7 {[%emt 0:00:00]} 5. Re1 {[%emt 0:00:02]} e5 {[%emt 0:00:02]} 6. Bxc6 {[%emt 0:00:02]} dxc6 {[%emt 0:00:00]} 7. d3 {[%emt 0:00:02]} Qe7 {[%emt 0:00:05]} 8. Nbd2 {[%emt 0:00:20]} Nf6 {[%emt 0:00:02]} 9. Nc4 {[%emt 0:00:05]} Nd7 {[%emt 0:00:01]} 10. Bd2 {[%emt 0:00:05] B31: Sicilian: 2...Nc6 3 Bb5 g6.} b6 {[%emt 0:00:10]} 11. a3 {[%emt 0:00:02]} Ba6 {[%emt 0:00:24]} 12. Ne3 {[%emt 0:00:59] The position is equal.} O-O {[%emt 0:00:13]} 13. b4 {[%emt 0:00:01] [#]} h6 $146 {[%emt 0:00:13]} ({Predecessor:} 13... f5 14. exf5 gxf5 15. Bc3 Rad8 16. Qb1 e4 17. Bxg7 Qxg7 18. Nh4 exd3 19. Nhxf5 Qc3 {½-½ (32) Damljanovic,B (2504)-Roganovic,M (2490) Vrnjacka Banja 2021}) 14. Bc3 {[%emt 0:00:08]} Kh7 {[%emt 0:00:07]} 15. Qc1 {[%emt 0:00:11]} Bb7 {[%emt 0:00:36]} 16. Qb2 {[%emt 0:00:03]} Rfe8 {[%emt 0:00:03]} 17. bxc5 {[%emt 0:00:15]} Nxc5 {[%emt 0:00:02]} 18. a4 {[%emt 0:00:01]} Nd7 {[%emt 0:00:13]} 19. a5 {[%emt 0:00:08]} c5 {[%emt 0:00:14]} (19... b5 $11) 20. Ra3 {[%emt 0:00:22]} Bc6 {[%emt 0:00:03]} 21. axb6 {[%emt 0:00:01]} axb6 {[%emt 0:00:01]} 22. Rea1 {[%emt 0:00:01][%cal Be1a1,Ba1a3,Ba3a7][%mdl 32]} Rxa3 {[%emt 0:00:19]} 23. Rxa3 {[%emt 0:00:02]} b5 {[%emt 0:00:05]} 24. Ra7 {[%emt 0:00:12]} Qd6 {[%emt 0:00:00][%cal Of7f5]} 25. Qb3 {[%emt 0:00:11]} Rf8 {[%emt 0:00:04]} 26. Bb2 {[%emt 0:00:05]} f5 {[%emt 0:00:01]} 27. Nd2 {[%emt 0:00:10]} ({White should play} 27. exf5 $14 gxf5 28. Nh4) 27... fxe4 {[%emt 0:00:08]} (27... c4 $1 $11 28. Qc3 (28. dxc4 $2 Qxd2 29. Qc3 Qe2 $19) 28... fxe4) 28. Nxe4 $16 {[%emt 0:00:05]} Bxe4 {[%emt 0:00:02]} 29. dxe4 {[%emt 0:00:00]} Qd2 {[%emt 0:00:06]} 30. f3 {[%emt 0:00:02] Active counter play!} Qe1+ $2 {[%emt 0:00:02]} (30... b4) 31. Nf1 $18 {[%emt 0:00:01]} Nf6 {[%emt 0:00:13][%cal Of6g4]} 32. Qe3 $2 {[%emt 0:00:03]} (32. Qxb5 Nxe4 33. Bxe5 Qf2+ 34. Kh1 Nf6 $18) (32. Qe6 {Threatens to win with Qe7.} c4 33. Qxe5 Qf2+ 34. Kxf2 Ng4+ 35. Ke2 Nxe5 36. Bxe5) 32... Qb1 $2 {[%emt 0:00:15]} (32... Qxe3+ {was necessary.} 33. Nxe3 Rd8) 33. Bxe5 {[%emt 0:00:04]} (33. Qxc5 $2 Qxb2 34. Rb7 Kh8 35. Rxb5 Qa1 $19) 33... Qxc2 {[%emt 0:00:01]} 34. h3 $2 {[%emt 0:00:07]} (34. Qf4 $18 {and the rest is easy.} Qc4 35. Bxf6) 34... Qc4 $16 {[%emt 0:00:04]} 35. Nd2 {[%emt 0:00:05]} Qe6 {[%emt 0:00:01]} 36. Qxc5 $40 {[%emt 0:00:03][%mdl 128] [#] Strongly threatening Re7. Black needs to defend precisely.} (36. Bxf6 {simplifies} Rxf6 37. Qxc5 Qb6 38. Rc7) 36... Rd8 $2 {[%emt 0:00:05][%mdl 8192]} (36... Nd7 $14 37. Qc7 (37. Qxb5 $2 {loses.} Nxe5 38. Qa6 Qe8 $19) 37... Qxe5 38. Qxd7 Rd8 39. Qxd8 Qc5+ 40. Kf1 Qxa7) 37. Bd4 $2 {[%emt 0:00:05]} ({But not} 37. Qc7 $2 Rd7 38. Qb8 Rxa7 39. Bxf6 Rd7 40. Bxg7 Kxg7 $19) (37. Re7 Qc8 38. Rxg7+ Kxg7 39. Qe7+ (39. Qxb5 $2 {is the wrong capture.} Rxd2 40. Qb6 Qd8 $19) 39... Kg8 40. Qxf6) 37... Rd7 $18 {[%emt 0:00:04]} 38. Nf1 {[%emt 0:00:02]} Rxa7 {[%emt 0:00:03]} 39. Qxa7 {[%emt 0:00:01]} b4 {[%emt 0:00:01]} 40. Qb6 $2 {[%emt 0:00:03] Prevents Qc6.} (40. Ne3 $18) 40... b3 $2 {[%emt 0:00:01][%mdl 8192] [#]} 41. Qxe6 {[%emt 0:00:01] Weighted Error Value: White=0.69/Black=0.60} 1-0

[Event "Romanian Team Blitz Open 2022"]
[Site "Sebes"]
[Date "2022.12.04"]
[Round "4.9"]
[White "Anton, Teodor"]
[Black "Nastase, Robert-Paul"]
[Result "0-1"]
[ECO "E17"]
[WhiteElo "2438"]
[BlackElo "2229"]
[Annotator "TA"]
[PlyCount "54"]
[EventDate "2022.12.04"]
[EventType "blitz"]
[EventCountry "ROU"]
[SourceTitle "playchess.com"]
[Source "ChessBase"]
[SourceQuality "1"]
[TimeControl "180+2"]

{[%evp 24,54,8,-13,5,5,8,0,0,0,0,0,0,0,0,0,0,0,0,0,24,0,24,-7,-9,-127,-131,-180,-191,-234,-261,-1163,-1136]} 1. Nf3 {[%emt 0:00:01]} Nf6 {[%emt 0:00:02]} 2. c4 {[%emt 0:00:02]} e6 {[%emt 0:00:07]} 3. g3 {[%emt 0:00:05]} b6 {[%emt 0:00:01]} 4. Bg2 {[%emt 0:00:01]} Bb7 {[%emt 0:00:01]} 5. O-O {[%emt 0:00:02]} Be7 {[%emt 0:00:01]} 6. Nc3 {[%emt 0:00:01]} O-O {[%emt 0:00:01]} 7. d4 {[%emt 0:00:04]} d5 {[%emt 0:00:06]} 8. b3 {[%emt 0:00:12]} c5 {[%emt 0:00:11]} 9. e3 {[%emt 0:00:05]} Nbd7 {[%emt 0:01:21]} 10. Bb2 {[%emt 0:00:02]} Rc8 {[%emt 0:00:07]} 11. cxd5 {[%emt 0:00:03]} Nxd5 {[%emt 0:00:02]} 12. Nxd5 {[%emt 0:00:09]} Bxd5 {[%emt 0:00:01]} 13. Qe2 {[%emt 0:00:03]} cxd4 {[%emt 0:00:07] E17: Queen's Indian: 4 g3 Bb7 5 Bg2 Be7.} 14. Nxd4 {[%emt 0:00:13]} Bxg2 {[%emt 0:00:02]} 15. Kxg2 {[%emt 0:00:01]} Nc5 {[%emt 0:00:12] [#] The position is equal.} 16. Rfd1 $146 {[%emt 0:00:26][%cal Od4e6] [#] Threatens to win with Nxe6!} ({Predecessor:} 16. e4 Qd7 17. Kg1 Qb7 18. Rfe1 Rfd8 19. Rad1 a6 20. h4 Bf6 21. e5 Be7 22. Qg4 {½-½ (43) Kenney,J (2201)-Sohal,T (2374) Richmond 2017}) 16... Qd5+ {[%emt 0:00:03]} 17. Qf3 {[%emt 0:00:12] Strongly threatening Qxd5.} Rfd8 {[%emt 0:00:05]} (17... Qxf3+ {simplifies} 18. Kxf3 Rfd8 19. Ke2 f6) 18. Qxd5 {[%emt 0:00:24]} Rxd5 {[%emt 0:00:02]} 19. Nb5 {[%emt 0:00:26]} Rxd1 {[%emt 0:00:06]} 20. Rxd1 {[%emt 0:00:02]} a6 {[%emt 0:00:02]} 21. Nd4 {[%emt 0:00:11]} Bf6 {[%emt 0:00:01]} 22. Kf3 {[%emt 0:00:13]} (22. Rc1 $5 {[%cal Rb3b4]} a5 23. Rc2 $11) 22... Kf8 {[%emt 0:00:19] [#] ...e5 is the strong threat.} (22... e5 $5 23. Nf5 $8 (23. b4 $2 Na4 $19) 23... Ne6 $14) 23. Ke2 {[%emt 0:00:01]} Ne4 {[%emt 0:00:13]} 24. Rd3 {[%emt 0:00:32]} (24. f3 $11 Nc3+ 25. Bxc3 Rxc3 26. f4) 24... Bxd4 $17 {[%emt 0:00:21] Black is more active.} 25. Bxd4 {[%emt 0:00:06]} (25. Rxd4 $17 {was worth a try.} Rc2+ 26. Kd3 Rxb2 27. Kxe4) 25... Rc2+ $19 {[%emt 0:00:01]} 26. Kd1 {[%emt 0:00:08]} Rxa2 {[%emt 0:00:02]} 27. Bxb6 $2 {[%emt 0:00:02]} (27. Ke1) 27... Nxf2+ {[%emt 0:00:01] Weighted Error Value: White=0.70/Black=0.05 (flawless)} ({Inferior is} 27... Rxf2 28. h4 $17) 0-1

[Event "Romanian Team Blitz Open 2022"]
[Site "Sebes"]
[Date "2022.12.04"]
[Round "4.10"]
[White "Daianu, Cristian-Clement"]
[Black "David, Alexandru-Vasile"]
[Result "1-0"]
[ECO "B72"]
[WhiteElo "2189"]
[BlackElo "2404"]
[Annotator "TA"]
[PlyCount "53"]
[EventDate "2022.12.04"]
[EventType "blitz"]
[EventCountry "ROU"]
[SourceTitle "playchess.com"]
[Source "ChessBase"]
[SourceQuality "1"]
[TimeControl "180+2"]

{[%evp 14,53,28,0,0,0,0,-1,0,0,0,0,0,0,0,0,0,0,0,0,2,-15,0,0,0,0,0,0,115,106,108,141,127,98,96,103,107,16,112,98,116,100]} 1. e4 {[%emt 0:00:02]} c5 {[%emt 0:00:01]} 2. Nf3 {[%emt 0:00:01]} d6 {[%emt 0:00:01]} 3. d4 {[%emt 0:00:00]} cxd4 4. Nxd4 {[%emt 0:00:01]} Nf6 {[%emt 0:00:02]} 5. Nc3 {[%emt 0:00:01]} g6 {[%emt 0:00:01]} 6. Be2 {[%emt 0:00:01]} Bg7 {[%emt 0:00:02]} 7. Be3 {[%emt 0:00:02]} Nc6 {[%emt 0:00:02]} 8. h4 {[%emt 0:00:01] 8.Qd2 gains popularity.} h5 {[%emt 0:00:04] B72: Sicilian Dragon: 6 Be3, lines with h3+Bc4 and sidelines.} 9. Qd2 {[%emt 0:00:06]} Ng4 {[%emt 0:00:18]} 10. Bxg4 {[%emt 0:00:02]} Bxg4 {[%emt 0:00:01] The position is equal.} 11. f3 {[%emt 0:00:01]} Bd7 {[%emt 0:00:01]} 12. O-O-O {[%emt 0:00:01]} Ne5 {[%emt 0:00:01]} 13. b3 {[%emt 0:00:01] Inhibits Nc4.} Qa5 {[%emt 0:00:08] Strongly threatening ...Rc8.} 14. Kb1 {[%emt 0:00:09]} Rc8 {[%emt 0:00:08]} 15. Nd5 {[%emt 0:00:22]} Qxd2 {[%emt 0:00:14]} 16. Rxd2 {[%emt 0:00:01] [#]} e6 $146 {[%emt 0:00:17]} ({Predecessor:} 16... Nc6 17. a4 Be5 18. Rhd1 b6 19. c4 Nxd4 20. Bxd4 Bxd4 21. Rxd4 Bc6 22. Kb2 f6 {1-0 (45) Baron Rodriguez,J (2205)-Vila Dupla,A (2295) Zaragoza 1996}) 17. Nb4 {[%emt 0:00:32]} (17. Nf4 $5 {[%cal Rd4e2]}) 17... a5 {[%emt 0:00:01]} 18. Nd3 {[%emt 0:00:01]} b5 {[%emt 0:00:01]} 19. Nxe5 {[%emt 0:00:20]} Bxe5 {[%emt 0:00:04]} (19... dxe5 $5 20. Ne2 $8 Bc6 $11) 20. Ne2 {[%emt 0:00:01]} Rc7 {[%emt 0:00:36]} (20... Bc6 $11) 21. Bb6 $16 {[%emt 0:00:43][%csl LRa5,LRc7]} Rc6 {[%emt 0:00:07]} 22. Bxa5 {[%emt 0:00:03]} f5 {[%emt 0:00:18]} 23. Rhd1 {[%emt 0:00:52]} fxe4 {[%emt 0:00:05]} 24. fxe4 {[%emt 0:00:01]} O-O {[%emt 0:00:26]} 25. Ng1 {[%emt 0:00:10]} ({White should try} 25. Bb4 $16) 25... Bf4 {[%emt 0:00:44]} (25... Ra8 $11 {keeps the balance.} 26. Bb4 Rca6) 26. Rd3 {[%emt 0:00:01]} Rfc8 {[%emt 0:00:04]} 27. c3 {[%emt 0:00:02] Weighted Error Value: White=0.11 (very precise) /Black=0.18 (very precise)} 1-0

[Event "Romanian Team Blitz Open 2022"]
[Site "Sebes"]
[Date "2022.12.04"]
[Round "4.11"]
[White "Ghimpu, Samuel-Timotei"]
[Black "Vrencian, Lehel"]
[Result "1-0"]
[ECO "A31"]
[WhiteElo "2455"]
[BlackElo "2226"]
[Annotator "TA"]
[PlyCount "65"]
[EventDate "2022.12.04"]
[EventType "blitz"]
[EventCountry "ROU"]
[SourceTitle "playchess.com"]
[Source "ChessBase"]
[SourceQuality "1"]
[TimeControl "180+2"]

{[%evp 21,65,56,50,34,47,47,48,34,80,68,52,84,95,97,85,99,104,77,113,47,164,139,156,0,60,60,161,150,203,169,190,120,125,-677,155,44,161,171,2300,2185,2425,1547,1525,1510,1527,1387]} 1. e4 {[%emt 0:00:03]} c5 {[%emt 0:00:01]} 2. Nf3 {[%emt 0:00:03]} e6 {[%emt 0:00:03]} 3. d4 {[%emt 0:00:01]} cxd4 {[%emt 0:00:00]} 4. Nxd4 {[%emt 0:00:01]} a6 {[%emt 0:00:01]} 5. c4 {[%emt 0:00:02]} Nf6 {[%emt 0:00:01]} 6. Nc3 {[%emt 0:00:02]} d6 {[%emt 0:00:01]} 7. Be2 {[%emt 0:00:06]} b6 {[%emt 0:00:06]} 8. O-O {[%emt 0:00:04]} Bb7 {[%emt 0:00:01]} 9. f3 {[%emt 0:00:01]} Be7 {[%emt 0:00:01]} 10. Be3 {[%emt 0:00:02]} Nbd7 {[%emt 0:00:02]} 11. Qd2 {[%emt 0:00:19]} O-O {[%emt 0:00:02]} 12. Kh1 {[%emt 0:00:39] A31: Symmetrical English: 2 Nf3 Nf6 3 d4.} Qc7 {[%emt 0:00:02]} 13. Rfc1 {[%emt 0:00:02]} Rac8 {[%emt 0:00:02]} 14. a4 {[%emt 0:00:01][%cal Oa4a5] White is slightly better.} Rfe8 {[%emt 0:00:06]} (14... Qb8 $14) 15. a5 $16 {[%emt 0:00:02]} bxa5 {[%emt 0:00:05]} 16. Nb3 {[%emt 0:00:01]} Qb8 {[%emt 0:00:12][%cal Ob7e4]} 17. Nxa5 {[%emt 0:00:02][%cal Oc4c5]} (17. Rxa5 Bxe4 $1 18. fxe4 Qxb3 $11) 17... Ba8 {[%emt 0:00:02] Against c5} 18. b4 {[%emt 0:00:07] [#]} d5 $146 {[%emt 0:00:44]} (18... Qxb4 $2 19. Rcb1 d5 20. Rxb4 $18 (20. cxd5 $2 Qxc3 21. dxe6 fxe6 $19) (20. exd5 Qd6 $16)) ({Predecessor:} 18... Ne5 19. b5 axb5 20. Nxb5 Rcd8 21. Rcb1 d5 22. cxd5 exd5 23. Nd4 Qc7 24. Rc1 Qd6 {1-0 (40) Khismatullin,D (2534)-Tunik,G (2491) Moscow 2004}) 19. c5 $1 {[%emt 0:00:16] Strongly threatening exd5.} (19. exd5 Bxb4 20. Nc6 (20. Bf4 Qb6 $17) 20... Bxc6 21. dxc6 Rxc6 $15) (19. cxd5 exd5 20. Bxa6 Rcd8 $14) 19... dxe4 {[%emt 0:00:06]} 20. fxe4 {[%emt 0:00:22]} (20. Bxa6 $2 exf3 21. c6 Rxc6 22. Nxc6 Bxc6 $19) (20. Nxe4 $16 Nxe4 21. Qxd7 (21. fxe4 Nf6 $16)) 20... Ne5 {[%emt 0:00:16]} (20... Qxb4 $14 21. Rcb1 (21. Bxa6 Rxc5 22. Bxc5 Nxc5 $15) 21... Nxe4 22. Rxb4 (22. Qxd7 $2 Qxc3 23. Nc4 Nxc5 $19) 22... Nxd2) 21. Bxa6 $18 {[%emt 0:00:25]} Rcd8 {[%emt 0:00:23]} 22. Qc2 {[%emt 0:00:02]} ({White should play} 22. Qe2 $16 {Black must now prevent Bf4.} Qxb4 23. Bb5 Nxe4 24. Nxe4 Qxe4 25. Ra4) 22... Neg4 {[%emt 0:00:31]} (22... Qxb4 $2 23. Ra4 Qb8 24. Rb1 $16) (22... Nfg4 $11 23. Bf4 Qxb4) 23. Bg1 $14 {[%emt 0:00:03]} Qxb4 {[%emt 0:00:23]} (23... Qf4 $14 24. Qe2 Rb8) 24. c6 $18 {[%emt 0:00:15] c7 is the strong threat.} Qd6 {[%emt 0:00:18] Against c7} (24... Qb8 $16 25. Nd5 exd5) 25. Bb7 $1 {[%emt 0:00:29]} Qf4 {[%emt 0:00:13]} 26. Rf1 {[%emt 0:00:11]} (26. g3 $1 $18 {[%cal Rg3f4]} Qf3+ 27. Qg2 Qxg2+ 28. Kxg2) 26... Qh6 $16 {[%emt 0:00:05]} 27. c7 $2 {[%emt 0:00:07][%mdl 8192] [#]} (27. Nc4 $16) 27... Rc8 $2 {[%emt 0:00:05]} 28. Bxa8 {[%emt 0:00:02] Really sharp! White has more active pieces. The black rooks are badly placed.} (28. Bxc8 $16 Nxh2 29. Bxh2) 28... Rxa8 {[%emt 0:00:01] [#]} ({Black should try} 28... Nxh2 $14 29. Bxh2 Bd6) 29. Nc6 $1 $18 {[%emt 0:00:02]} Nh5 $2 {[%emt 0:00:01]} (29... Bd6 30. Rxa8 Rxa8) 30. Nxe7+ {[%emt 0:00:04] White is clearly winning.} Kh8 {[%emt 0:00:01]} 31. Qd3 {[%emt 0:00:02] White threatens Rxa8 and mate.} (31. c8=R $2 Ng3#) 31... Rxa1 {[%emt 0:00:06]} 32. Rxa1 {[%emt 0:00:00]} (32. c8=N $2 {loses.} Rxf1 33. g3 Nf2+ 34. Kg2 Nxd3 $19) 32... g6 {[%emt 0:00:02]} 33. c8=Q {[%emt 0:00:06] Weighted Error Value: White=0.44/Black=0.73} 1-0